[Event "Titled Tuesday Blitz November 07 Early 2023"]
[White "Baskakov, Egor"]
[Black "Timerkhanov, Alexander"]
[WhiteFideId "24197866"]
[BlackFideId "24177938"]
[WhiteElo "2930"]
[BlackElo "2710"]
[Result "1/2-1/2"]
[Round "3"]
[TimeControl "180+1"]
[Date "2023.11.07"]
[WhiteClock "0:00:46"]
[BlackClock "0:01:00"]
[Board "18"]

1. e4 {[%clk 0:03:00]}  c5 {[%clk 0:02:58]} 2. Nf3 {[%clk 0:03:00]}  a6 {[%clk 0:02:58]} 3. c4 {[%clk 0:03:00]}  Nc6 {[%clk 0:02:58]} 4. d4 {[%clk 0:03:00]}  cxd4 {[%clk 0:02:59]} 5. Nxd4 {[%clk 0:03:00]}  Nf6 {[%clk 0:03:00]} 6. Nc3 {[%clk 0:03:01]}  e5 {[%clk 0:03:00]} 7. Nde2 {[%clk 0:03:00]}  Bc5 {[%clk 0:02:59]} 8. Ng3 {[%clk 0:02:59]}  d6 {[%clk 0:02:58]} 9. Be2 {[%clk 0:02:55]}  h6 {[%clk 0:02:55]} 10. O-O {[%clk 0:02:54]}  O-O {[%clk 0:02:56]} 11. Nh5 {[%clk 0:02:48]}  Nd4 {[%clk 0:02:52]} 12. Nxf6+ {[%clk 0:02:46]}  Qxf6 {[%clk 0:02:53]} 13. Bg4 {[%clk 0:02:44]}  Be6 {[%clk 0:02:52]} 14. b3 {[%clk 0:02:30]}  b5 {[%clk 0:02:46]} 15. Nd5 {[%clk 0:02:27]}  Bxd5 {[%clk 0:02:27]} 16. cxd5 {[%clk 0:02:27]}  b4 {[%clk 0:02:26]} 17. Be3 {[%clk 0:02:25]}  a5 {[%clk 0:02:26]} 18. Qd3 {[%clk 0:02:14]}  a4 {[%clk 0:02:22]} 19. Bd7 {[%clk 0:02:09]}  axb3 {[%clk 0:02:18]} 20. axb3 {[%clk 0:02:09]}  Ra3 {[%clk 0:02:13]} 21. Rab1 {[%clk 0:02:09]}  Qg6 {[%clk 0:02:05]} 22. f4 {[%clk 0:01:59]}  Ra2 {[%clk 0:01:44]} 23. Rf2 {[%clk 0:01:30]}  Nf3+ {[%clk 0:01:30]} 24. Kh1 {[%clk 0:01:29]}  Rxf2 {[%clk 0:01:27]} 25. Bxf2 {[%clk 0:01:29]}  Bxf2 {[%clk 0:01:20]} 26. Qxf3 {[%clk 0:01:25]}  Bd4 {[%clk 0:01:20]} 27. Rf1 {[%clk 0:01:12]}  exf4 {[%clk 0:01:17]} 28. Qxf4 {[%clk 0:01:12]}  Be5 {[%clk 0:01:17]} 29. Qf3 {[%clk 0:01:10]}  Ra8 {[%clk 0:01:08]} 30. g3 {[%clk 0:01:05]}  Qf6 {[%clk 0:01:05]} 31. Qe2 {[%clk 0:01:00]}  Ra1 {[%clk 0:01:05]} 32. Rxa1 {[%clk 0:00:53]}  Bxa1 {[%clk 0:01:06]} 33. Kg2 {[%clk 0:00:46]}  g6 {[%clk 0:01:00]} 1/2-1/2


[Site "https://www.chess.com"]

[Event "Titled Tuesday Blitz November 07 Early 2023"]
[White "Nagare Kaivalya Sandip"]
[Black "Khismatullin, Denis"]
[WhiteFideId "25957929"]
[BlackFideId "4142578"]
[WhiteElo "2708"]
[BlackElo "2928"]
[Result "0-1"]
[Round "3"]
[TimeControl "180+1"]
[Date "2023.11.07"]
[WhiteClock "0:00:04"]
[BlackClock "0:00:46"]
[Board "19"]

1. e4 {[%clk 0:02:59]}  c5 {[%clk 0:02:58]} 2. Nf3 {[%clk 0:02:58]}  d6 {[%clk 0:02:59]} 3. d4 {[%clk 0:02:39]}  cxd4 {[%clk 0:02:57]} 4. Nxd4 {[%clk 0:02:40]}  Nf6 {[%clk 0:02:57]} 5. Nc3 {[%clk 0:02:40]}  a6 {[%clk 0:02:57]} 6. Bg5 {[%clk 0:02:41]}  e6 {[%clk 0:02:57]} 7. f4 {[%clk 0:02:41]}  Be7 {[%clk 0:02:57]} 8. Qf3 {[%clk 0:02:42]}  Qc7 {[%clk 0:02:53]} 9. O-O-O {[%clk 0:02:42]}  Nbd7 {[%clk 0:02:51]} 10. Bd3 {[%clk 0:02:42]}  b5 {[%clk 0:02:48]} 11. Rhe1 {[%clk 0:02:42]}  Bb7 {[%clk 0:02:47]} 12. Qg3 {[%clk 0:02:41]}  O-O-O {[%clk 0:02:45]} 13. Bxf6 {[%clk 0:02:37]}  Bxf6 {[%clk 0:02:39]} 14. Bxb5 {[%clk 0:02:37]}  Nc5 {[%clk 0:02:09]} 15. Bf1 {[%clk 0:02:00]}  g5 {[%clk 0:01:57]} 16. fxg5 {[%clk 0:01:48]}  Be5 {[%clk 0:01:56]} 17. Qe3 {[%clk 0:01:40]}  Kb8 {[%clk 0:01:52]} 18. Kb1 {[%clk 0:01:39]}  Rc8 {[%clk 0:01:49]} 19. g3 {[%clk 0:01:06]}  Bg7 {[%clk 0:01:44]} 20. Nb3 {[%clk 0:00:49]}  Nxe4 {[%clk 0:01:41]} 21. Rd3 {[%clk 0:00:14]}  Bxc3 {[%clk 0:01:37]} 22. bxc3 {[%clk 0:00:14]}  Nxc3+ {[%clk 0:01:37]} 23. Ka1 {[%clk 0:00:13]}  d5 {[%clk 0:01:19]} 24. Qe5 {[%clk 0:00:09]}  Ne4 {[%clk 0:01:13]} 25. Qxc7+ {[%clk 0:00:09]}  Rxc7 {[%clk 0:01:14]} 26. Kb2 {[%clk 0:00:08]}  Rhc8 {[%clk 0:01:12]} 27. Nd4 {[%clk 0:00:09]}  e5 {[%clk 0:01:09]} 28. Nb3 {[%clk 0:00:05]}  Rxc2+ {[%clk 0:01:08]} 29. Kb1 {[%clk 0:00:05]}  Rxh2 {[%clk 0:01:06]} 30. Na5 {[%clk 0:00:03]}  Nc3+ {[%clk 0:00:56]} 31. Rxc3 {[%clk 0:00:04]}  Rxc3 {[%clk 0:00:56]} 32. Nxb7 {[%clk 0:00:03]}  Kxb7 {[%clk 0:00:56]} 33. Rxe5 {[%clk 0:00:04]}  Rf3 {[%clk 0:00:47]} 34. Re7+ {[%clk 0:00:04]}  Kb6 {[%clk 0:00:46]} 35. Be2 {[%clk 0:00:04]}  Rff2 {[%clk 0:00:46]} 0-1


[Site "https://www.chess.com"]

[Event "Titled Tuesday Blitz November 07 Early 2023"]
[White "Rakotomaharo, Fy Antenaina"]
[Black "Aravindh, Chithambaram VR."]
[WhiteFideId "13100050"]
[BlackFideId "5072786"]
[WhiteElo "2705"]
[BlackElo "2913"]
[Result "0-1"]
[Round "3"]
[TimeControl "180+1"]
[Date "2023.11.07"]
[WhiteClock "0:00:01"]
[BlackClock "0:00:06"]
[Board "21"]

1. Nf3 {[%clk 0:03:00]}  Nf6 {[%clk 0:02:56]} 2. d4 {[%clk 0:03:00]}  g6 {[%clk 0:02:56]} 3. Bg5 {[%clk 0:02:59]}  Bg7 {[%clk 0:02:53]} 4. c3 {[%clk 0:03:00]}  O-O {[%clk 0:02:52]} 5. Nbd2 {[%clk 0:03:00]}  d5 {[%clk 0:02:52]} 6. e3 {[%clk 0:03:00]}  Nbd7 {[%clk 0:02:51]} 7. Be2 {[%clk 0:02:59]}  c5 {[%clk 0:02:51]} 8. O-O {[%clk 0:02:58]}  b6 {[%clk 0:02:51]} 9. a4 {[%clk 0:02:58]}  Bb7 {[%clk 0:02:51]} 10. h3 {[%clk 0:02:58]}  a6 {[%clk 0:02:49]} 11. Qb1 {[%clk 0:02:50]}  Nh5 {[%clk 0:02:47]} 12. Bh4 {[%clk 0:02:42]}  h6 {[%clk 0:02:45]} 13. Ne1 {[%clk 0:02:39]}  Nhf6 {[%clk 0:02:19]} 14. b4 {[%clk 0:02:33]}  cxd4 {[%clk 0:02:09]} 15. cxd4 {[%clk 0:02:31]}  Ne4 {[%clk 0:02:03]} 16. Nxe4 {[%clk 0:02:15]}  dxe4 {[%clk 0:02:04]} 17. Nc2 {[%clk 0:02:16]}  Nf6 {[%clk 0:02:04]} 18. b5 {[%clk 0:02:06]}  a5 {[%clk 0:01:59]} 19. Na3 {[%clk 0:02:05]}  Nd5 {[%clk 0:01:57]} 20. Rc1 {[%clk 0:02:05]}  g5 {[%clk 0:01:54]} 21. Bg3 {[%clk 0:02:04]}  f5 {[%clk 0:01:54]} 22. Bc4 {[%clk 0:01:39]}  Rc8 {[%clk 0:01:27]} 23. Bb3 {[%clk 0:01:32]}  Rxc1+ {[%clk 0:01:24]} 24. Qxc1 {[%clk 0:01:32]}  f4 {[%clk 0:01:25]} 25. exf4 {[%clk 0:01:22]}  Bxd4 {[%clk 0:01:23]} 26. Ra2 {[%clk 0:01:22]}  e6 {[%clk 0:01:19]} 27. fxg5 {[%clk 0:01:11]}  e3 {[%clk 0:01:16]} 28. Nc4 {[%clk 0:00:52]}  Qxg5 {[%clk 0:01:12]} 29. Qe1 {[%clk 0:00:46]}  Nc3 {[%clk 0:00:27]} 30. fxe3 {[%clk 0:00:39]}  Bc5 {[%clk 0:00:26]} 31. Nxa5 {[%clk 0:00:02]}  Nxa2 {[%clk 0:00:10]} 32. Nxb7 {[%clk 0:00:02]}  Qxe3+ {[%clk 0:00:08]} 33. Qxe3 {[%clk 0:00:02]}  Bxe3+ {[%clk 0:00:09]} 34. Kh2 {[%clk 0:00:03]}  Nc1 {[%clk 0:00:07]} 35. Bxe6+ {[%clk 0:00:03]}  Kh7 {[%clk 0:00:07]} 36. a5 {[%clk 0:00:03]}  bxa5 {[%clk 0:00:06]} 37. Nxa5 {[%clk 0:00:04]}  Ne2 {[%clk 0:00:06]} 38. Bd6 {[%clk 0:00:04]}  Bg1+ {[%clk 0:00:06]} 39. Kh1 {[%clk 0:00:04]}  Rf1 {[%clk 0:00:06]} 40. Bc4 {[%clk 0:00:04]}  Bc5+ {[%clk 0:00:06]} 41. Kh2 {[%clk 0:00:04]}  Bxd6+ {[%clk 0:00:07]} 42. g3 {[%clk 0:00:05]}  Rf2+ {[%clk 0:00:06]} 43. Kh1 {[%clk 0:00:05]}  Nxg3+ {[%clk 0:00:07]} 44. Kg1 {[%clk 0:00:06]}  Bc5 {[%clk 0:00:06]} 45. Nb3 {[%clk 0:00:01]}  Be3 {[%clk 0:00:06]} 0-1


[Site "https://www.chess.com"]

[Event "Titled Tuesday Blitz November 07 Early 2023"]
[White "Bauman_Guy"]
[Black "Nasuta, Grzegorz"]
[BlackFideId "1141686"]
[WhiteElo "2910"]
[BlackElo "2702"]
[Result "1-0"]
[Round "3"]
[TimeControl "180+1"]
[Date "2023.11.07"]
[WhiteClock "0:01:01"]
[BlackClock "0:00:00"]
[Board "22"]

1. e4 {[%clk 0:03:00]}  c5 {[%clk 0:02:59]} 2. Nf3 {[%clk 0:03:00]}  d6 {[%clk 0:02:57]} 3. d4 {[%clk 0:03:00]}  cxd4 {[%clk 0:02:57]} 4. Nxd4 {[%clk 0:03:01]}  Nf6 {[%clk 0:02:58]} 5. Nc3 {[%clk 0:03:01]}  a6 {[%clk 0:02:58]} 6. h3 {[%clk 0:03:00]}  e6 {[%clk 0:02:57]} 7. g3 {[%clk 0:03:00]}  Be7 {[%clk 0:02:42]} 8. Bg2 {[%clk 0:02:58]}  O-O {[%clk 0:02:42]} 9. O-O {[%clk 0:02:58]}  Qc7 {[%clk 0:02:37]} 10. a4 {[%clk 0:02:56]}  Nc6 {[%clk 0:02:37]} 11. Nxc6 {[%clk 0:02:52]}  bxc6 {[%clk 0:02:36]} 12. a5 {[%clk 0:02:52]}  Rb8 {[%clk 0:02:34]} 13. b3 {[%clk 0:02:49]}  c5 {[%clk 0:02:19]} 14. Re1 {[%clk 0:02:45]}  Rd8 {[%clk 0:02:13]} 15. Be3 {[%clk 0:02:41]}  Bb7 {[%clk 0:02:05]} 16. Qe2 {[%clk 0:02:40]}  Nd7 {[%clk 0:02:04]} 17. Na4 {[%clk 0:02:39]}  Bf6 {[%clk 0:02:00]} 18. Rad1 {[%clk 0:02:36]}  Bc6 {[%clk 0:01:06]} 19. Bf4 {[%clk 0:02:29]}  Be5 {[%clk 0:00:49]} 20. Bxe5 {[%clk 0:02:26]}  Nxe5 {[%clk 0:00:49]} 21. Nb6 {[%clk 0:02:25]}  Nd7 {[%clk 0:00:44]} 22. Nc4 {[%clk 0:02:24]}  Bb5 {[%clk 0:00:44]} 23. f4 {[%clk 0:02:18]}  Nf6 {[%clk 0:00:31]} 24. Qd2 {[%clk 0:02:12]}  d5 {[%clk 0:00:21]} 25. exd5 {[%clk 0:02:10]}  Nxd5 {[%clk 0:00:21]} 26. Ne5 {[%clk 0:02:05]}  Nb4 {[%clk 0:00:17]} 27. Qc3 {[%clk 0:02:04]}  Nd5 {[%clk 0:00:05]} 28. Qa1 {[%clk 0:01:52]}  c4 {[%clk 0:00:05]} 29. Rd4 {[%clk 0:01:45]}  Qc5 {[%clk 0:00:03]} 30. Kh2 {[%clk 0:01:39]}  cxb3 {[%clk 0:00:03]} 31. c4 {[%clk 0:01:39]}  Nb4 {[%clk 0:00:01]} 32. Rxd8+ {[%clk 0:01:36]}  Rxd8 {[%clk 0:00:02]} 33. cxb5 {[%clk 0:01:36]}  Nc2 {[%clk 0:00:03]} 34. Qc1 {[%clk 0:01:36]}  Qxb5 {[%clk 0:00:03]} 35. Rd1 {[%clk 0:01:35]}  Rxd1 {[%clk 0:00:03]} 36. Qxd1 {[%clk 0:01:35]}  h6 {[%clk 0:00:03]} 37. Qd8+ {[%clk 0:01:23]}  Kh7 {[%clk 0:00:03]} 38. Be4+ {[%clk 0:01:23]}  f5 {[%clk 0:00:03]} 39. Bd3 {[%clk 0:01:10]}  Qxa5 {[%clk 0:00:00]} 40. Qxa5 {[%clk 0:01:01]} 1-0


[Site "https://www.chess.com"]

[Event "Titled Tuesday Blitz November 07 Early 2023"]
[White "Svane, Frederik"]
[Black "Akhmedinov, Satbek"]
[WhiteFideId "12923044"]
[BlackFideId "13714287"]
[WhiteElo "2905"]
[BlackElo "2697"]
[Result "0-1"]
[Round "3"]
[TimeControl "180+1"]
[Date "2023.11.07"]
[WhiteClock "0:01:07"]
[BlackClock "0:00:27"]
[Board "23"]

1. d4 {[%clk 0:02:58]}  Nf6 {[%clk 0:02:59]} 2. Nf3 {[%clk 0:02:58]}  e6 {[%clk 0:02:59]} 3. Bf4 {[%clk 0:02:58]}  d5 {[%clk 0:02:59]} 4. Nbd2 {[%clk 0:02:58]}  Bd6 {[%clk 0:02:59]} 5. Bg5 {[%clk 0:02:59]}  h6 {[%clk 0:02:58]} 6. Bxf6 {[%clk 0:02:59]}  gxf6 {[%clk 0:02:57]} 7. e3 {[%clk 0:02:56]}  b6 {[%clk 0:02:50]} 8. a4 {[%clk 0:02:54]}  a5 {[%clk 0:02:49]} 9. c3 {[%clk 0:02:54]}  Bb7 {[%clk 0:02:48]} 10. Bd3 {[%clk 0:02:53]}  f5 {[%clk 0:02:37]} 11. Qe2 {[%clk 0:02:45]}  Nd7 {[%clk 0:02:34]} 12. O-O {[%clk 0:02:41]}  Qf6 {[%clk 0:02:27]} 13. g3 {[%clk 0:02:39]}  Ke7 {[%clk 0:02:19]} 14. Nh4 {[%clk 0:02:37]}  Rhg8 {[%clk 0:02:13]} 15. Kh1 {[%clk 0:02:36]}  c5 {[%clk 0:02:05]} 16. Ndf3 {[%clk 0:02:26]}  c4 {[%clk 0:01:59]} 17. Bc2 {[%clk 0:02:26]}  Ba6 {[%clk 0:01:59]} 18. Ng1 {[%clk 0:02:17]}  Nf8 {[%clk 0:01:58]} 19. Qh5 {[%clk 0:02:08]}  Rg5 {[%clk 0:01:56]} 20. Qd1 {[%clk 0:02:06]}  Rg8 {[%clk 0:01:47]} 21. Re1 {[%clk 0:02:02]}  Ng6 {[%clk 0:01:45]} 22. Ngf3 {[%clk 0:02:02]}  Rgb8 {[%clk 0:01:39]} 23. b3 {[%clk 0:02:01]}  cxb3 {[%clk 0:01:37]} 24. Bxb3 {[%clk 0:02:02]}  Kf8 {[%clk 0:01:37]} 25. Bc2 {[%clk 0:01:59]}  Kg7 {[%clk 0:01:36]} 26. Bd3 {[%clk 0:01:59]}  b5 {[%clk 0:01:34]} 27. axb5 {[%clk 0:01:59]}  Bxb5 {[%clk 0:01:34]} 28. Bxb5 {[%clk 0:01:59]}  Rxb5 {[%clk 0:01:35]} 29. Qe2 {[%clk 0:02:00]}  Rab8 {[%clk 0:01:34]} 30. Ra2 {[%clk 0:01:57]}  Qd8 {[%clk 0:01:28]} 31. Ng2 {[%clk 0:01:57]}  Qc7 {[%clk 0:01:15]} 32. Qc2 {[%clk 0:01:46]}  Rb3 {[%clk 0:01:14]} 33. Rc1 {[%clk 0:01:45]}  Ba3 {[%clk 0:01:00]} 34. Nd2 {[%clk 0:01:23]}  Rb2 {[%clk 0:00:40]} 35. Rxb2 {[%clk 0:01:22]}  Rxb2 {[%clk 0:00:41]} 36. Qa4 {[%clk 0:01:23]}  Rxd2 {[%clk 0:00:33]} 37. Qxa3 {[%clk 0:01:23]}  Rxf2 {[%clk 0:00:32]} 38. Kg1 {[%clk 0:01:20]}  Rd2 {[%clk 0:00:32]} 39. c4 {[%clk 0:01:19]}  dxc4 {[%clk 0:00:30]} 40. Qc3 {[%clk 0:01:19]}  Rd3 {[%clk 0:00:28]} 41. Qxc4 {[%clk 0:01:07]}  Rd1+ {[%clk 0:00:27]} 0-1


[Site "https://www.chess.com"]

[Event "Titled Tuesday Blitz November 07 Early 2023"]
[White "Hua, Lefong"]
[Black "Sethuraman, S.P."]
[WhiteFideId "2602253"]
[BlackFideId "5021596"]
[WhiteElo "2696"]
[BlackElo "2895"]
[Result "0-1"]
[Round "3"]
[TimeControl "180+1"]
[Date "2023.11.07"]
[WhiteClock "0:00:21"]
[BlackClock "0:00:28"]
[Board "24"]

1. d4 {[%clk 0:03:00]}  d5 {[%clk 0:02:59]} 2. c4 {[%clk 0:02:59]}  e6 {[%clk 0:02:59]} 3. Nc3 {[%clk 0:03:00]}  c6 {[%clk 0:02:59]} 4. e3 {[%clk 0:03:00]}  f5 {[%clk 0:02:54]} 5. Nf3 {[%clk 0:03:00]}  Bd6 {[%clk 0:02:47]} 6. Bd3 {[%clk 0:03:00]}  Nh6 {[%clk 0:02:47]} 7. b3 {[%clk 0:02:58]}  O-O {[%clk 0:02:44]} 8. Bb2 {[%clk 0:02:58]}  Nd7 {[%clk 0:02:44]} 9. O-O {[%clk 0:02:57]}  Nf7 {[%clk 0:02:30]} 10. Ne2 {[%clk 0:02:56]}  Qf6 {[%clk 0:02:28]} 11. a4 {[%clk 0:02:50]}  Qh6 {[%clk 0:02:26]} 12. Ba3 {[%clk 0:02:46]}  Bxa3 {[%clk 0:02:19]} 13. Rxa3 {[%clk 0:02:45]}  g5 {[%clk 0:02:19]} 14. g3 {[%clk 0:02:41]}  Nf6 {[%clk 0:02:17]} 15. Kg2 {[%clk 0:02:22]}  Bd7 {[%clk 0:02:16]} 16. h4 {[%clk 0:02:18]}  g4 {[%clk 0:02:00]} 17. Ne5 {[%clk 0:02:15]}  Nxe5 {[%clk 0:02:00]} 18. dxe5 {[%clk 0:02:15]}  Ne4 {[%clk 0:02:00]} 19. Bxe4 {[%clk 0:02:08]}  fxe4 {[%clk 0:02:00]} 20. Nf4 {[%clk 0:02:08]}  Qg7 {[%clk 0:02:00]} 21. Nh5 {[%clk 0:01:54]}  Qxe5 {[%clk 0:02:00]} 22. Qxg4+ {[%clk 0:01:54]}  Kh8 {[%clk 0:02:00]} 23. Qg5 {[%clk 0:01:41]}  Rf5 {[%clk 0:01:32]} 24. Qe7 {[%clk 0:01:32]}  Be8 {[%clk 0:01:27]} 25. Nf4 {[%clk 0:01:28]}  Bf7 {[%clk 0:01:21]} 26. Raa1 {[%clk 0:01:13]}  Rg8 {[%clk 0:01:17]} 27. Kh2 {[%clk 0:01:07]}  Qg7 {[%clk 0:00:28]} 28. Qxb7 {[%clk 0:00:50]}  e5 {[%clk 0:00:28]} 29. Nh3 {[%clk 0:00:40]}  Rxf2+ {[%clk 0:00:27]} 30. Rxf2 {[%clk 0:00:20]}  Qxg3+ {[%clk 0:00:27]} 31. Kh1 {[%clk 0:00:20]}  Qxh3+ {[%clk 0:00:28]} 32. Rh2 {[%clk 0:00:21]}  Qf3+ {[%clk 0:00:28]} 33. Rg2 {[%clk 0:00:21]}  Qxg2# {[%clk 0:00:28]} 0-1


[Site "https://www.chess.com"]

[Event "Titled Tuesday Blitz November 07 Early 2023"]
[White "Zhigalko, Sergei"]
[Black "Lukovic, Vladimir"]
[WhiteFideId "13502956"]
[BlackFideId "942952"]
[WhiteElo "2892"]
[BlackElo "2694"]
[Result "1-0"]
[Round "3"]
[TimeControl "180+1"]
[Date "2023.11.07"]
[WhiteClock "0:00:05"]
[BlackClock "0:00:03"]
[Board "25"]

1. e4 {[%clk 0:02:57]}  e5 {[%clk 0:02:58]} 2. Nf3 {[%clk 0:02:57]}  Nc6 {[%clk 0:02:58]} 3. Bc4 {[%clk 0:02:56]}  Bc5 {[%clk 0:02:56]} 4. b4 {[%clk 0:02:57]}  Bxb4 {[%clk 0:02:54]} 5. c3 {[%clk 0:02:56]}  Be7 {[%clk 0:02:42]} 6. d4 {[%clk 0:02:55]}  Na5 {[%clk 0:02:38]} 7. Bd3 {[%clk 0:02:55]}  d6 {[%clk 0:02:34]} 8. dxe5 {[%clk 0:02:55]}  dxe5 {[%clk 0:02:33]} 9. Nxe5 {[%clk 0:02:56]}  Nf6 {[%clk 0:02:31]} 10. O-O {[%clk 0:02:56]}  O-O {[%clk 0:02:31]} 11. Qc2 {[%clk 0:02:57]}  Be6 {[%clk 0:02:24]} 12. Nd2 {[%clk 0:02:51]}  c5 {[%clk 0:02:23]} 13. c4 {[%clk 0:02:41]}  Qc7 {[%clk 0:02:17]} 14. Bb2 {[%clk 0:02:40]}  Rad8 {[%clk 0:02:16]} 15. f4 {[%clk 0:02:32]}  Bc8 {[%clk 0:02:14]} 16. Ndf3 {[%clk 0:02:27]}  b6 {[%clk 0:02:12]} 17. Rae1 {[%clk 0:02:11]}  h6 {[%clk 0:02:09]} 18. Bc3 {[%clk 0:01:43]}  Nb7 {[%clk 0:02:06]} 19. h3 {[%clk 0:01:23]}  Nd6 {[%clk 0:02:04]} 20. f5 {[%clk 0:01:22]}  Bb7 {[%clk 0:02:01]} 21. Ng4 {[%clk 0:01:17]}  Nxg4 {[%clk 0:01:57]} 22. hxg4 {[%clk 0:01:17]}  f6 {[%clk 0:01:55]} 23. e5 {[%clk 0:00:57]}  fxe5 {[%clk 0:01:55]} 24. Nxe5 {[%clk 0:00:56]}  Bf6 {[%clk 0:01:53]} 25. Ng6 {[%clk 0:00:54]}  Bxc3 {[%clk 0:01:47]} 26. Qxc3 {[%clk 0:00:49]}  Rf7 {[%clk 0:01:48]} 27. f6 {[%clk 0:00:41]}  Re8 {[%clk 0:01:01]} 28. Ne7+ {[%clk 0:00:23]}  Rexe7 {[%clk 0:01:00]} 29. fxe7 {[%clk 0:00:24]}  Rxe7 {[%clk 0:01:00]} 30. Bg6 {[%clk 0:00:19]}  Ne4 {[%clk 0:00:55]} 31. Qf3 {[%clk 0:00:06]}  Nf6 {[%clk 0:00:55]} 32. Qf2 {[%clk 0:00:04]}  Bc6 {[%clk 0:00:46]} 33. Bf5 {[%clk 0:00:04]}  Qd6 {[%clk 0:00:42]} 34. Rxe7 {[%clk 0:00:04]}  Qxe7 {[%clk 0:00:42]} 35. Re1 {[%clk 0:00:04]}  Qd6 {[%clk 0:00:42]} 36. Qe3 {[%clk 0:00:04]}  Kf8 {[%clk 0:00:37]} 37. Qd3 {[%clk 0:00:03]}  Qxd3 {[%clk 0:00:37]} 38. Bxd3 {[%clk 0:00:04]}  Nxg4 {[%clk 0:00:36]} 39. Bg6 {[%clk 0:00:04]}  Nf6 {[%clk 0:00:35]} 40. Kf1 {[%clk 0:00:04]}  Bd7 {[%clk 0:00:27]} 41. Ke2 {[%clk 0:00:04]}  Be6 {[%clk 0:00:26]} 42. Kd3 {[%clk 0:00:03]}  Bf7 {[%clk 0:00:25]} 43. Bxf7 {[%clk 0:00:03]}  Kxf7 {[%clk 0:00:26]} 44. a4 {[%clk 0:00:03]}  h5 {[%clk 0:00:23]} 45. a5 {[%clk 0:00:03]}  bxa5 {[%clk 0:00:21]} 46. Ra1 {[%clk 0:00:03]}  Nd7 {[%clk 0:00:19]} 47. Rxa5 {[%clk 0:00:03]}  Ke6 {[%clk 0:00:19]} 48. Ra6+ {[%clk 0:00:03]}  Ke5 {[%clk 0:00:19]} 49. Rxa7 {[%clk 0:00:04]}  Kd6 {[%clk 0:00:16]} 50. Ke4 {[%clk 0:00:03]}  Nf6+ {[%clk 0:00:15]} 51. Kf5 {[%clk 0:00:03]}  Ng4 {[%clk 0:00:15]} 52. Ra6+ {[%clk 0:00:02]}  Kc7 {[%clk 0:00:15]} 53. Rg6 {[%clk 0:00:02]}  Ne3+ {[%clk 0:00:15]} 54. Ke4 {[%clk 0:00:02]}  Nxc4 {[%clk 0:00:15]} 55. Kd5 {[%clk 0:00:02]}  Ne3+ {[%clk 0:00:15]} 56. Kxc5 {[%clk 0:00:02]}  Kd7 {[%clk 0:00:10]} 57. Kd4 {[%clk 0:00:03]}  Nf5+ {[%clk 0:00:10]} 58. Ke5 {[%clk 0:00:03]}  Ne3 {[%clk 0:00:02]} 59. Rxg7+ {[%clk 0:00:03]}  Ke8 {[%clk 0:00:03]} 60. Kf4 {[%clk 0:00:03]}  Nd5+ {[%clk 0:00:03]} 61. Kg5 {[%clk 0:00:03]}  Kf8 {[%clk 0:00:03]} 62. Rg6 {[%clk 0:00:03]}  Kf7 {[%clk 0:00:03]} 63. Ra6 {[%clk 0:00:03]}  h4 {[%clk 0:00:03]} 64. Kxh4 {[%clk 0:00:02]}  Ne3 {[%clk 0:00:03]} 65. g4 {[%clk 0:00:03]}  Kg7 {[%clk 0:00:03]} 66. Kg5 {[%clk 0:00:03]}  Nd5 {[%clk 0:00:03]} 67. Ra7+ {[%clk 0:00:03]}  Kg8 {[%clk 0:00:04]} 68. Kg6 {[%clk 0:00:03]}  Nf4+ {[%clk 0:00:04]} 69. Kf5 {[%clk 0:00:03]}  Nd5 {[%clk 0:00:05]} 70. g5 {[%clk 0:00:04]}  Kf8 {[%clk 0:00:05]} 71. g6 {[%clk 0:00:04]}  Kg8 {[%clk 0:00:06]} 72. Kg5 {[%clk 0:00:05]}  Kh8 {[%clk 0:00:03]} 73. Kh6 {[%clk 0:00:05]} 1-0


[Site "https://www.chess.com"]

[Event "Titled Tuesday Blitz November 07 Early 2023"]
[White "Tatarinov, Dmitry"]
[Black "Talibov, Shiroghlan"]
[WhiteFideId "24160067"]
[BlackFideId "13429078"]
[WhiteElo "2693"]
[BlackElo "2889"]
[Result "0-1"]
[Round "3"]
[TimeControl "180+1"]
[Date "2023.11.07"]
[WhiteClock "0:00:19"]
[BlackClock "0:00:10"]
[Board "26"]

1. Nf3 {[%clk 0:02:39]}  c5 {[%clk 0:02:58]} 2. e4 {[%clk 0:02:40]}  a6 {[%clk 0:02:55]} 3. c4 {[%clk 0:02:38]}  e6 {[%clk 0:02:54]} 4. d4 {[%clk 0:02:38]}  cxd4 {[%clk 0:02:55]} 5. Nxd4 {[%clk 0:02:38]}  Qc7 {[%clk 0:02:56]} 6. Bd3 {[%clk 0:02:38]}  Nf6 {[%clk 0:02:56]} 7. O-O {[%clk 0:02:38]}  b6 {[%clk 0:02:57]} 8. Nc3 {[%clk 0:02:37]}  Bb7 {[%clk 0:02:58]} 9. Re1 {[%clk 0:02:37]}  d6 {[%clk 0:02:55]} 10. Nf3 {[%clk 0:02:33]}  Nbd7 {[%clk 0:02:55]} 11. Bf4 {[%clk 0:02:33]}  Be7 {[%clk 0:02:51]} 12. Rc1 {[%clk 0:02:27]}  Ne5 {[%clk 0:02:49]} 13. b3 {[%clk 0:02:07]}  O-O {[%clk 0:02:48]} 14. h3 {[%clk 0:02:06]}  Rfd8 {[%clk 0:02:40]} 15. Bf1 {[%clk 0:02:06]}  Rac8 {[%clk 0:02:36]} 16. Nd4 {[%clk 0:02:03]}  Qb8 {[%clk 0:02:33]} 17. Qe2 {[%clk 0:01:55]}  Qa8 {[%clk 0:02:32]} 18. Na4 {[%clk 0:01:53]}  Ned7 {[%clk 0:02:25]} 19. f3 {[%clk 0:01:43]}  Bf8 {[%clk 0:02:10]} 20. Be3 {[%clk 0:01:42]}  d5 {[%clk 0:02:02]} 21. e5 {[%clk 0:01:37]}  Ne8 {[%clk 0:01:43]} 22. cxd5 {[%clk 0:01:37]}  Bxd5 {[%clk 0:01:29]} 23. Bf2 {[%clk 0:01:37]}  Bb4 {[%clk 0:01:20]} 24. Red1 {[%clk 0:01:34]}  b5 {[%clk 0:01:20]} 25. Nb2 {[%clk 0:01:30]}  Rxc1 {[%clk 0:01:20]} 26. Rxc1 {[%clk 0:01:31]}  Rc8 {[%clk 0:01:21]} 27. Rxc8 {[%clk 0:01:28]}  Qxc8 {[%clk 0:01:21]} 28. Nd3 {[%clk 0:01:29]}  Be7 {[%clk 0:01:18]} 29. Qc2 {[%clk 0:01:19]}  Qb7 {[%clk 0:00:59]} 30. Nf4 {[%clk 0:01:14]}  Nxe5 {[%clk 0:00:55]} 31. Nxd5 {[%clk 0:01:15]}  exd5 {[%clk 0:00:52]} 32. f4 {[%clk 0:01:07]}  Nd7 {[%clk 0:00:43]} 33. a4 {[%clk 0:01:07]}  bxa4 {[%clk 0:00:40]} 34. bxa4 {[%clk 0:01:08]}  Bc5 {[%clk 0:00:38]} 35. Qe2 {[%clk 0:01:05]}  Kf8 {[%clk 0:00:28]} 36. Qxa6 {[%clk 0:01:05]}  Qb2 {[%clk 0:00:20]} 37. Qd3 {[%clk 0:00:53]}  Nd6 {[%clk 0:00:20]} 38. Qc2 {[%clk 0:00:43]}  Bxd4 {[%clk 0:00:17]} 39. Qxb2 {[%clk 0:00:33]}  Bxb2 {[%clk 0:00:18]} 40. a5 {[%clk 0:00:33]}  d4 {[%clk 0:00:12]} 41. a6 {[%clk 0:00:33]}  Nb6 {[%clk 0:00:12]} 42. a7 {[%clk 0:00:32]}  Ndc8 {[%clk 0:00:10]} 43. Bd3 {[%clk 0:00:20]}  h6 {[%clk 0:00:09]} 44. Bh7 {[%clk 0:00:21]}  Nxa7 {[%clk 0:00:09]} 45. g4 {[%clk 0:00:20]}  Nc6 {[%clk 0:00:09]} 46. g5 {[%clk 0:00:21]}  hxg5 {[%clk 0:00:09]} 47. fxg5 {[%clk 0:00:21]}  g6 {[%clk 0:00:10]} 48. h4 {[%clk 0:00:19]}  Kg7 {[%clk 0:00:10]} 0-1


[Site "https://www.chess.com"]